Department Family,Date Paid,Expense Type,Expense Area,Supplier,Transaction Number,Amount,Vat Inclusive
Crown Prosecution Service ,02/08/22,Crown Court Graduated Fee Scheme,SEOC Team 2,23 Essex Street Chambers,174585-FEN-TRIAL,"122,063.64",Y
Crown Prosecution Service ,02/08/22,Crown Court Very High Cost Cases Full Scheme,SEOC Team 1,Foundry Chambers (9-12 Bell Yard),195975/PS,"31,640.00",Y
Crown Prosecution Service ,02/08/22,Crown Court Graduated Fee Scheme,Yorks and Humbs CC Legal,New Park Court Chambers Leeds,364662/BAC,"26,012.40",Y
Crown Prosecution Service ,02/08/22,External legal advice - Civil litigation,Other Corporate Programme Payments,Government Legal Department,510960,"103,439.15",Y
Crown Prosecution Service ,02/08/22,Apprenticeship Levy payments Permanent,Other Corporate Admin Payments,HM Revenue and Customs,948PB000021422304,"7,245.48",
Crown Prosecution Service ,02/08/22,Apprenticeship Levy payments Permanent,Other Corporate Programme Payments,HM Revenue and Customs,948PB000021422304,"113,512.52",
Crown Prosecution Service ,03/08/22,Crown Court Very High Cost Cases Full Scheme,Mersey Cheshire Complex Casework Unit,Harrington Street Chambers,1096572/NJS133,"29,511.54",Y
Crown Prosecution Service ,03/08/22,Crown Court Graduated Fee Scheme,SEOC Team 2,Red Lion Chambers (18 RLC),160122CKBtrialfees,"59,420.16",Y
Crown Prosecution Service ,03/08/22,Crown Court Graduated Fee Scheme,North West RASSO Unit,9 St John Street (Nine),408810 - 4/PAC,"25,003.80",Y
Crown Prosecution Service ,03/08/22,Crown Court Graduated Fee Scheme,London North Crown Court Unit,5 King's Bench Walk,FH 172371,"29,777.40",Y
Crown Prosecution Service ,03/08/22,Other Staff Costs,Other Corporate Admin Payments,Reward Gateway (UK) Ltd,UK059486SI,"30,000.00",
Crown Prosecution Service ,04/08/22,Crown Court Graduated Fee Scheme,Cymru Wales RASSO unit,30 Park Place Chambers,625923-4/NF,"31,871.88",
Crown Prosecution Service ,05/08/22,Crown Court Graduated Fee Scheme,Yorkshire and Humberside Complex Casework Unit,St Pauls Chambers Leeds,164091 Pivot 1 GHO,"43,577.76",Y
Crown Prosecution Service ,05/08/22,Crown Court Graduated Fee Scheme,Yorkshire and Humberside Complex Casework Unit,St Pauls Chambers Leeds,164091 Pivot1 JS,"89,238.84",Y
Crown Prosecution Service ,05/08/22,Recoverable VAT control,Balance Sheet,Accenture (UK) Ltd London,3003554060,"18,875.00",Y
Crown Prosecution Service ,05/08/22,IT services,DTS Programme Project Cost,Accenture (UK) Ltd London,3003554060,"94,375.00",
Crown Prosecution Service ,05/08/22,IT services,DTS Programme Project Cost,Accenture (UK) Ltd London,3003559462,"42,000.00",
Crown Prosecution Service ,05/08/22,Recoverable VAT control,Balance Sheet,Accenture (UK) Ltd London,3003559462,"8,400.00",Y
Crown Prosecution Service ,05/08/22,Crown Court Graduated Fee Scheme,West Midlands Crown Court Unit,No 5 Fountain Court Chambers,815613/MPB/VENABLES,"45,334.20",Y
Crown Prosecution Service ,08/08/22,Crown Court Graduated Fee Scheme,North West Crown Court Hub,Harrington Street Chambers,1164679/MCL,"26,379.60",Y
Crown Prosecution Service ,08/08/22,Crown Court Graduated Fee Scheme,London North Complex Casework Unit,Furnival Chambers,171478 SON St George,"35,829.00",Y
Crown Prosecution Service ,08/08/22,Recoverable VAT control,Balance Sheet,WIPRO Holdings London,5000095949,"21,325.30",Y
Crown Prosecution Service ,08/08/22,IT services,End User Computing Contract,WIPRO Holdings London,5000095949,"106,626.50",
Crown Prosecution Service ,08/08/22,IT services,End User Computing Contract,WIPRO Holdings London,5000095953,"34,678.66",
Crown Prosecution Service ,08/08/22,Recoverable VAT control,Balance Sheet,WIPRO Holdings London,5000095953,"6,935.73",Y
Crown Prosecution Service ,08/08/22,IT services,DTS Programme Project Cost,WIPRO Holdings London,90130681,"33,605.76",Y
Crown Prosecution Service ,08/08/22,IT services,DTS Programme Project Cost,CGI IT UK Ltd,GB014086830,"28,569.83",Y
Crown Prosecution Service ,08/08/22,IT services,DTS Programme Project Cost,eSynergy Solutions Ltd,INV00000698,"75,772.04",Y
Crown Prosecution Service ,08/08/22,IT services,DTS Programme Project Cost,eSynergy Solutions Ltd,INV00000700,"36,000.00",Y
Crown Prosecution Service ,08/08/22,IT services,DTS Programme Project Cost,eSynergy Solutions Ltd,INV00000706,"50,100.00",Y
Crown Prosecution Service ,08/08/22,IT services,DTS Programme Project Cost,eSynergy Solutions Ltd,INV00000709,"63,208.19",Y
Crown Prosecution Service ,08/08/22,IT services,DTS Programme Project Cost,eSynergy Solutions Ltd,INV00000714,"30,780.00",Y
Crown Prosecution Service ,08/08/22,Crown Court Graduated Fee Scheme,London North Complex Casework Unit,3 Raymond Buildings,WEJ/249705,"81,852.60",Y
Crown Prosecution Service ,09/08/22,Crown Court Graduated Fee Scheme,Wessex Crown Court Unit,3PB (3 Paper Buildings),401481 ASF,"25,282.20",Y
Crown Prosecution Service ,10/08/22,Crown Court Graduated Fee Scheme,East of England Complex Casework Unit,23 Essex Street Chambers,195878-LWI,"34,630.80",Y
Crown Prosecution Service ,10/08/22,Crown Court Graduated Fee Scheme,London North Complex Casework Unit,QEB Hollis Whiteman Chambers,JE 109982 A,"35,449.80",Y
Crown Prosecution Service ,11/08/22,Crown Court Very High Cost Cases Full Scheme,SEOC Team 1,Foundry Chambers (9-12 Bell Yard),195975/MC,"103,661.55",Y
Crown Prosecution Service ,11/08/22,Crown Court Graduated Fee Scheme,Yorks and Humbs CC Legal,New Park Court Chambers Leeds,364007/JPQC,"52,432.44",Y
Crown Prosecution Service ,11/08/22,Crown Court Graduated Fee Scheme,Yorks and Humbs CC Legal,New Park Court Chambers Leeds,364007/TSS,"27,020.28",Y
Crown Prosecution Service ,11/08/22,UK National rail travel,DID Security and Information,Clarity Travel Management,CPSHQ0331,"1,070.90",
Crown Prosecution Service ,11/08/22,UK Hotels,DID DTS Technology,Clarity Travel Management,CPSHQ0331,499.70,Y
Crown Prosecution Service ,11/08/22,UK Hotels,Central Operational Training,Clarity Travel Management,CPSHQ0331,844.27,Y
Crown Prosecution Service ,11/08/22,UK Hotels,Operational Change,Clarity Travel Management,CPSHQ0331,509.99,Y
Crown Prosecution Service ,11/08/22,UK Hotels,DID Central Leadership Team,Clarity Travel Management,CPSHQ0331,148.00,Y
Crown Prosecution Service ,11/08/22,UK Hotels,Compliance and Assurance,Clarity Travel Management,CPSHQ0331,328.80,Y
Crown Prosecution Service ,11/08/22,UK Hotels,PF Senior Staffing,Clarity Travel Management,CPSHQ0331,144.80,Y
Crown Prosecution Service ,11/08/22,UK Hotels,PF National Black Crown Prosecutors Association,Clarity Travel Management,CPSHQ0331,85.00,Y
Crown Prosecution Service ,11/08/22,UK Hotels,DID Security and Information,Clarity Travel Management,CPSHQ0331,80.16,Y
Crown Prosecution Service ,11/08/22,UK Hotels,Central Legal Training Team,Clarity Travel Management,CPSHQ0331,187.00,Y
Crown Prosecution Service ,11/08/22,UK Hotels,Private Office,Clarity Travel Management,CPSHQ0331,854.62,Y
Crown Prosecution Service ,11/08/22,UK Hotels,Operational Business Support,Clarity Travel Management,CPSHQ0331,139.99,Y
Crown Prosecution Service ,11/08/22,UK Hotels,DTUS,Clarity Travel Management,CPSHQ0331,80.00,Y
Crown Prosecution Service ,11/08/22,UK Hotels,DID DTS Change,Clarity Travel Management,CPSHQ0331,644.00,Y
Crown Prosecution Service ,11/08/22,UK Hotels,PF HR Business Partnering,Clarity Travel Management,CPSHQ0331,86.00,Y
Crown Prosecution Service ,11/08/22,UK Hotels,PF People and Business Change,Clarity Travel Management,CPSHQ0331,226.00,Y
Crown Prosecution Service ,11/08/22,UK Hotels,PF HR Systems and Information,Clarity Travel Management,CPSHQ0331,73.00,Y
Crown Prosecution Service ,11/08/22,UK Hotels,PF Legal Training,Clarity Travel Management,CPSHQ0331,449.00,Y
Crown Prosecution Service ,11/08/22,UK Hotels,Permanent Transfer Costs,Clarity Travel Management,CPSHQ0331,"1,197.04",Y
Crown Prosecution Service ,11/08/22,UK National rail travel,DID Central Leadership Team,Clarity Travel Management,CPSHQ0331,94.40,
Crown Prosecution Service ,11/08/22,UK National rail travel,Operational Performance,Clarity Travel Management,CPSHQ0331,463.40,
Crown Prosecution Service ,11/08/22,UK National rail travel,Operational Business Support,Clarity Travel Management,CPSHQ0331,916.30,
Crown Prosecution Service ,11/08/22,UK National rail travel,Central Operational Training,Clarity Travel Management,CPSHQ0331,938.60,
Crown Prosecution Service ,11/08/22,UK National rail travel,PF Learning and Development General,Clarity Travel Management,CPSHQ0331,"2,025.40",
Crown Prosecution Service ,11/08/22,UK National rail travel,PF Resourcing,Clarity Travel Management,CPSHQ0331,"1,684.45",
Crown Prosecution Service ,11/08/22,UK National rail travel,Central Legal Training Team,Clarity Travel Management,CPSHQ0331,847.60,
Crown Prosecution Service ,11/08/22,UK National rail travel,PF HR Systems and Information,Clarity Travel Management,CPSHQ0331,66.20,
Crown Prosecution Service ,11/08/22,UK National rail travel,DID DTS Change,Clarity Travel Management,CPSHQ0331,"1,481.40",
Crown Prosecution Service ,11/08/22,UK National rail travel,Permanent Transfer Costs,Clarity Travel Management,CPSHQ0331,272.10,
Crown Prosecution Service ,11/08/22,UK National rail travel,CFO Commercial,Clarity Travel Management,CPSHQ0331,"1,153.70",
Crown Prosecution Service ,11/08/22,UK National rail travel,DTUS,Clarity Travel Management,CPSHQ0331,34.70,
Crown Prosecution Service ,11/08/22,UK National rail travel,Press Office,Clarity Travel Management,CPSHQ0331,48.30,
Crown Prosecution Service ,11/08/22,UK National rail travel,CFO Estates,Clarity Travel Management,CPSHQ0331,5.10,
Crown Prosecution Service ,11/08/22,UK National rail travel,Compliance and Assurance,Clarity Travel Management,CPSHQ0331,815.10,
Crown Prosecution Service ,11/08/22,UK National rail travel,PF HR Business Partnering,Clarity Travel Management,CPSHQ0331,196.30,
Crown Prosecution Service ,11/08/22,UK National rail travel,Director of Legal Services,Clarity Travel Management,CPSHQ0331,259.50,
Crown Prosecution Service ,11/08/22,UK National rail travel,DID DTS Technology,Clarity Travel Management,CPSHQ0331,"1,063.50",
Crown Prosecution Service ,11/08/22,UK National rail travel,PF HR Operations,Clarity Travel Management,CPSHQ0331,"1,408.20",
Crown Prosecution Service ,11/08/22,UK National rail travel,PF People and Business Change,Clarity Travel Management,CPSHQ0331,"3,715.50",
Crown Prosecution Service ,11/08/22,UK National rail travel,PF Analytics and Workforce Plan,Clarity Travel Management,CPSHQ0331,60.40,
Crown Prosecution Service ,11/08/22,UK National rail travel,DID Operational Process,Clarity Travel Management,CPSHQ0331,126.00,
Crown Prosecution Service ,11/08/22,UK National rail travel,Operational Change,Clarity Travel Management,CPSHQ0331,441.75,
Crown Prosecution Service ,11/08/22,UK Hotels,CFO Commercial,Clarity Travel Management,CPSHQ0331,646.78,Y
Crown Prosecution Service ,11/08/22,IT non capital software licences,Legal Reference and ICT Licenses,Sprout Social Inc Chicago,INV-24782,"58,858.68",
Crown Prosecution Service ,12/08/22,Crown Court Graduated Fee Scheme,East Midlands Complex Casework Unit,36 Bedford Row,206254-NH,"33,961.15",Y
Crown Prosecution Service ,12/08/22,Recoverable VAT control,Balance Sheet,Oracle Corporation UK Ltd,460041110,"18,640.35",Y
Crown Prosecution Service ,12/08/22,IT non capital software licences,Legal Reference and ICT Licenses,Oracle Corporation UK Ltd,460041110,"93,201.77",
Crown Prosecution Service ,12/08/22,Recoverable VAT control,Balance Sheet,Oracle Corporation UK Ltd,460041112,"31,450.45",Y
Crown Prosecution Service ,12/08/22,IT non capital software licences,Legal Reference and ICT Licenses,Oracle Corporation UK Ltd,460041112,"157,252.25",
Crown Prosecution Service ,12/08/22,IT non capital software licences,Legal Reference and ICT Licenses,Egress Sotware Technologies Ltd London,INVUK22129,"500,820.00",Y
Crown Prosecution Service ,15/08/22,Crown Court Graduated Fee Scheme,Counter Terrorism Unit: Internal Funding,6 Kings Bench Walk- Chambers of D Fisher & D Perry,103536 Cardon,"28,968.00",Y
Crown Prosecution Service ,15/08/22,Crown Court Graduated Fee Scheme,Wessex Crown Court Unit,Red Lion Chambers (18 RLC),16625RKJtrial,"38,764.38",Y
Crown Prosecution Service ,15/08/22,Recoverable VAT control,Balance Sheet,WIPRO Holdings London,5000095945-1,"19,511.36",Y
Crown Prosecution Service ,15/08/22,IT services,End User Computing Contract,WIPRO Holdings London,5000095945-1,"97,556.79",
Crown Prosecution Service ,15/08/22,Crown Court Graduated Fee Scheme,RWD Midlands Wales Unit,Exchange Chambers - Liverpool,591410 - CA CLAIM 2,"27,201.00",Y
Crown Prosecution Service ,15/08/22,Crown Court Graduated Fee Scheme,RWD Midlands Wales Unit,Exchange Chambers - Liverpool,591410 - KS CLAIM 3,"41,050.02",Y
Crown Prosecution Service ,15/08/22,Intangibles asset purchase clearing CMS,DTS ICT Capital Expenditure,CGI IT UK Ltd,GB014087315,"89,641.35",
Crown Prosecution Service ,15/08/22,Recoverable VAT control,Balance Sheet,CGI IT UK Ltd,GB014087315,"17,928.27",Y
Crown Prosecution Service ,15/08/22,Recoverable VAT control,Balance Sheet,CGI IT UK Ltd,GB014087316,"166,543.59",Y
Crown Prosecution Service ,15/08/22,Intangibles asset purchase clearing CMS,DTS ICT Capital Expenditure,CGI IT UK Ltd,GB014087316,"832,717.94",
Crown Prosecution Service ,16/08/22,Recoverable VAT control,Balance Sheet,Lumen Technologies UK Ltd,304038834/1101494,"14,131.59",Y
Crown Prosecution Service ,16/08/22,IT services,PSN Connectivity Contract,Lumen Technologies UK Ltd,304038834/1101494,"70,657.97",
Crown Prosecution Service ,16/08/22,IT services,Other IT costs,Lumen Technologies UK Ltd,304039318/1098706,"45,600.97",Y
Crown Prosecution Service ,16/08/22,Recoverable VAT control,Balance Sheet,Lumen Technologies UK Ltd,304054156/1100588,"23,527.96",Y
Crown Prosecution Service ,16/08/22,IT services,PSN Services Contract,Lumen Technologies UK Ltd,304054156/1100588,"117,639.82",
Crown Prosecution Service ,16/08/22,IT services,DTS Programme Project Cost,Lumen Technologies UK Ltd,304519677/1102184,"68,461.42",Y
Crown Prosecution Service ,16/08/22,Data Communications,PSN Services Contract,Lumen Technologies UK Ltd,304580259/1102370,"33,312.73",Y
Crown Prosecution Service ,16/08/22,Short term leases from 2 to 12 months: IT and Equipment,Print Contract,Xerox (UK) Ltd,900221597,"51,422.35",
Crown Prosecution Service ,16/08/22,Recoverable VAT control,Balance Sheet,Xerox (UK) Ltd,900221597,"10,284.47",Y
Crown Prosecution Service ,16/08/22,IT services,DTS Programme Project Cost,CGI IT UK Ltd,GB014087412,"28,371.82",Y
Crown Prosecution Service ,16/08/22,Other managed/contractor services,DTS Programme Project Cost,Equal Experts London,INV-10869,"29,880.00",Y
Crown Prosecution Service ,16/08/22,Other managed/contractor services,DTS Programme Project Cost,Equal Experts London,INV-10870,"47,781.00",Y
Crown Prosecution Service ,16/08/22,Other managed/contractor services,DTS Programme Project Cost,Equal Experts London,INV-10871,"30,798.00",Y
Crown Prosecution Service ,16/08/22,IT services,DTS Programme Project Cost,eSynergy Solutions Ltd,INV00000732,"210,528.00",Y
Crown Prosecution Service ,17/08/22,Crown Court Graduated Fee Scheme,Mersey Cheshire Crown Court Unit,Nine Bedford Row (9 Bedford Row),1162573/PGL kg7hs,"28,722.96",Y
Crown Prosecution Service ,17/08/22,IT non capital software licences,DTS Programme Project Cost,Truststream Security Solutions Limited Edinburgh,1567,"29,450.35",Y
Crown Prosecution Service ,17/08/22,Crown Court Graduated Fee Scheme,Thames and Chiltern Complex Casework Unit,23 Essex Street Chambers,191692-IH-TRIAL,"50,812.68",Y
Crown Prosecution Service ,17/08/22,Crown Court Very High Cost Cases Full Scheme,West Midlands Complex Casework Unit,No 5 Fountain Court Chambers,769989/HSS/GREW2,"38,547.90",Y
Crown Prosecution Service ,17/08/22,IT services,DTS Programme Project Cost,FlyForm LTD Cardiff,INV-10931,"24,395.99",
Crown Prosecution Service ,17/08/22,Recoverable VAT control,Balance Sheet,FlyForm LTD Cardiff,INV-10931,"4,879.21",Y
Crown Prosecution Service ,18/08/22,Transcriptions and Translation,Other Corporate Programme Payments,Mendip Media Group Ltd Tiverton,0000000196,"29,034.00",
Crown Prosecution Service ,18/08/22,Recoverable VAT control,Balance Sheet,Mendip Media Group Ltd Tiverton,0000000196,"5,806.80",Y
Crown Prosecution Service ,18/08/22,General Management Consultancy Advice,DTS Programme Project Cost,PA Consulting Services Limited,0000018580,"115,285.97",Y
Crown Prosecution Service ,18/08/22,Crown Court Graduated Fee Scheme,Counter Terrorism Unit: Internal Funding,Walnut House Chambers of Geoffrey Mercer QC,117087 Riaz DPP,"39,581.95",Y
Crown Prosecution Service ,18/08/22,IT services,Apps and Hosting Contract,CGI IT UK Ltd,GB014087790,"1,024,785.69",
Crown Prosecution Service ,18/08/22,Recoverable VAT control,Balance Sheet,CGI IT UK Ltd,GB014087790,"204,957.14",Y
Crown Prosecution Service ,18/08/22,Crown Court Graduated Fee Scheme,London North Complex Casework Unit,2 Harcourt Buildings,JD/112346,"33,531.00",Y
Crown Prosecution Service ,19/08/22,Crown Court Graduated Fee Scheme,London North Complex Casework Unit,2 Hare Court Chambers -Chambers of Orlando Pownall,120135..,"27,773.40",Y
Crown Prosecution Service ,19/08/22,External legal advice - HR casework,PF Litigation,Government Legal Department,515692,"36,955.42",Y
Crown Prosecution Service ,22/08/22,Crown Court Very High Cost Cases Full Scheme,East Midlands Complex Casework Unit,36 Bedford Row,207356 Stage 5,"31,890.12",Y
Crown Prosecution Service ,22/08/22,IT non capital software licences,Legal Reference and ICT Licenses,Trustmarque Solutions Ltd,2346987,"52,566.69",
Crown Prosecution Service ,22/08/22,Recoverable VAT control,Balance Sheet,Trustmarque Solutions Ltd,2346987,"10,513.34",Y
Crown Prosecution Service ,22/08/22,IT services,ICT Network Services,Vodafone Ltd formerly Cable and Wireless Milton Keynes,4022662,"23,470.17",
Crown Prosecution Service ,22/08/22,Recoverable VAT control,Balance Sheet,Vodafone Ltd formerly Cable and Wireless Milton Keynes,4022662,"4,694.03",Y
Crown Prosecution Service ,22/08/22,Crown Court Graduated Fee Scheme,Yorkshire and Humberside Complex Casework Unit,Park Square Barristers (No 6 and Sovereign merged),494908/GG/ST7,"37,674.00",Y
Crown Prosecution Service ,23/08/22,Salary sacrifice suspense,Balance Sheet,Edenred,INV26399063,"19,448.35",
Crown Prosecution Service ,23/08/22,Other Staff Costs,CFO Finance Operations,Edenred,INV26399063,"7,631.57",
Crown Prosecution Service ,24/08/22,Crown Court Graduated Fee Scheme,London North Complex Casework Unit,6 Kings Bench Walk- Chambers of D Fisher & D Perry,103521 DP,"26,309.40",Y
Crown Prosecution Service ,24/08/22,Crown Court Graduated Fee Scheme,Mersey Cheshire Crown Court Unit,Harrington Street Chambers,1164939/RP,"43,484.82",Y
Crown Prosecution Service ,24/08/22,Crown Court Graduated Fee Scheme,London North Crown Court Unit,2 Kings Bench Walk London,278029-CHE,"35,302.20",Y
Crown Prosecution Service ,24/08/22,Crown Court Graduated Fee Scheme,West Midlands Complex Casework Unit,No 5 Fountain Court Chambers,818582/MCD/EDWARDS,"49,849.68",Y
Crown Prosecution Service ,24/08/22,Crown Court Graduated Fee Scheme,London North Crown Court Unit,QEB Hollis Whiteman Chambers,SL 111229 A,"46,008.60",Y
Crown Prosecution Service ,25/08/22,Crown Court Very High Cost Cases Full Scheme,East Midlands Complex Casework Unit,Seven Bedford Row,181065 al,"29,538.50",Y
Crown Prosecution Service ,25/08/22,Crown Court Graduated Fee Scheme,East of England Complex Casework Unit,23 Essex Street Chambers,190186-NR-TRIAL,"35,551.08",Y
Crown Prosecution Service ,25/08/22,Crown Court Very High Cost Cases Full Scheme,Cymru Wales Complex Casework Unit,Apex Chambers,45880-5/CLR,"65,157.00",Y
Crown Prosecution Service ,25/08/22,Crown Court Very High Cost Cases Full Scheme,Cymru Wales Complex Casework Unit,Apex Chambers,48036-4/AJ,"25,590.00",Y
Crown Prosecution Service ,25/08/22,Other publicity and media costs,PF Operational HR Costs,Linkedin Dublin,78111266228,"62,190.40",
Crown Prosecution Service ,25/08/22,IT non capital software licences,PF Operational HR Costs,Linkedin Dublin,78111297040,"32,205.00",
Crown Prosecution Service ,25/08/22,Other publicity and media costs,PF Operational HR Costs,Linkedin Dublin,78111297268,"27,455.00",
Crown Prosecution Service ,25/08/22,Crown Court Graduated Fee Scheme,South East Complex Casework Unit,Lamb Chambers,AP 228558,"27,484.44",Y
Crown Prosecution Service ,25/08/22,Crown Court Graduated Fee Scheme,London South Complex Casework Unit,9 Gough Chambers London,CH372192,"25,005.00",Y
Crown Prosecution Service ,25/08/22,Crown Court Graduated Fee Scheme,London North Complex Casework Unit,5 King's Bench Walk,LO171752.T2,"30,091.20",Y
Crown Prosecution Service ,26/08/22,Crown Court Graduated Fee Scheme,RWD Midlands Wales Unit,Seven Bedford Row,188853,"69,055.80",Y
Crown Prosecution Service ,26/08/22,Crown Court Graduated Fee Scheme,RWD Midlands Wales Unit,Seven Bedford Row,188853AY,"44,176.80",Y
Crown Prosecution Service ,26/08/22,Crown Court Graduated Fee Scheme,Yorks and Humbs CC Legal,New Park Court Chambers Leeds,365173/AMQC,"27,353.40",Y
Crown Prosecution Service ,26/08/22,Crown Court Very High Cost Cases Full Scheme,Cymru Wales Complex Casework Unit,30 Park Place Chambers,618080-17/AJ,"30,042.00",
Crown Prosecution Service ,26/08/22,Crown Court Very High Cost Cases Full Scheme,Cymru Wales Complex Casework Unit,30 Park Place Chambers,618080-17/EE,"29,214.00",
Crown Prosecution Service ,30/08/22,National non domestic rates,Estate and FM: Programme,Government Property Agency London,00000001/20148,"22,986.00",
Crown Prosecution Service ,30/08/22,Landlord service charge,Estate and FM: Programme,Government Property Agency London,00000001/20148,"8,221.30",
Crown Prosecution Service ,30/08/22,Lease liability non current lease payments,Balance Sheet,Government Property Agency London,00000001/20148,"69,372.10",
Crown Prosecution Service ,30/08/22,Property management fees,Estate and FM: Programme,Government Property Agency London,00000001/20148,"6,897.64",Y
Crown Prosecution Service ,30/08/22,Landlord service charge,Estate and FM: Administration,Government Property Agency London,00000001/20309,"8,294.15",
Crown Prosecution Service ,30/08/22,National non domestic rates,Estate and FM: Administration,Government Property Agency London,00000001/20309,"5,302.00",
Crown Prosecution Service ,30/08/22,Property management fees,Estate and FM: Administration,Government Property Agency London,00000001/20309,"7,638.16",Y
Crown Prosecution Service ,30/08/22,Lease liability non current lease payments,Balance Sheet,Government Property Agency London,00000001/20309,"28,800.00",
Crown Prosecution Service ,30/08/22,Property management fees,Estate and FM: Programme,Government Property Agency London,00000001/20310,729.00,Y
Crown Prosecution Service ,30/08/22,National non domestic rates,Estate and FM: Programme,Government Property Agency London,00000001/20310,"19,584.00",
Crown Prosecution Service ,30/08/22,Accommodation rental costs (non-IFRS16),Estate and FM: Programme,Government Property Agency London,00000001/20310,"12,000.00",
Crown Prosecution Service ,30/08/22,National non domestic rates,Estate and FM: Programme,Government Property Agency London,00000001/20312,"43,200.00",
Crown Prosecution Service ,30/08/22,Lease liability non current lease payments,Balance Sheet,Government Property Agency London,00000001/20312,"210,288.00",
Crown Prosecution Service ,30/08/22,Property management fees,Estate and FM: Programme,Government Property Agency London,00000001/20312,"15,535.94",Y
Crown Prosecution Service ,30/08/22,Landlord service charge,Estate and FM: Programme,Government Property Agency London,00000001/20312,"97,060.30",
Crown Prosecution Service ,30/08/22,Lease liability non current lease payments,Balance Sheet,Government Property Agency London,00000001/20318,"35,100.00",
Crown Prosecution Service ,30/08/22,National non domestic rates,Estate and FM: Programme,Government Property Agency London,00000001/20318,"15,104.00",
Crown Prosecution Service ,30/08/22,Property management fees,Estate and FM: Programme,Government Property Agency London,00000001/20318,"6,984.76",Y
Crown Prosecution Service ,30/08/22,Landlord service charge,Estate and FM: Programme,Government Property Agency London,00000001/20318,"16,347.55",
Crown Prosecution Service ,30/08/22,Lease liability non current lease payments,Balance Sheet,Government Property Agency London,00000001/20319,"87,000.00",
Crown Prosecution Service ,30/08/22,Property management fees,Estate and FM: Programme,Government Property Agency London,00000001/20319,"12,037.72",Y
Crown Prosecution Service ,30/08/22,National non domestic rates,Estate and FM: Programme,Government Property Agency London,00000001/20319,"25,472.00",
Crown Prosecution Service ,30/08/22,Landlord service charge,Estate and FM: Programme,Government Property Agency London,00000001/20319,"16,111.24",
Crown Prosecution Service ,30/08/22,Lease liability non current lease payments,Balance Sheet,Government Property Agency London,00000001/20320,"18,986.40",
Crown Prosecution Service ,30/08/22,National non domestic rates,Estate and FM: Programme,Government Property Agency London,00000001/20320,"7,104.00",
Crown Prosecution Service ,30/08/22,Property management fees,Estate and FM: Programme,Government Property Agency London,00000001/20320,"6,059.10",Y
Crown Prosecution Service ,30/08/22,Landlord service charge,Estate and FM: Programme,Government Property Agency London,00000001/20320,"8,605.72",
Crown Prosecution Service ,30/08/22,National non domestic rates,Estate and FM: Programme,Government Property Agency London,00000001/20321,"21,856.25",
Crown Prosecution Service ,30/08/22,Landlord service charge,Estate and FM: Programme,Government Property Agency London,00000001/20321,"21,374.50",
Crown Prosecution Service ,30/08/22,Lease liability non current lease payments,Balance Sheet,Government Property Agency London,00000001/20321,"74,220.00",
Crown Prosecution Service ,30/08/22,Property management fees,Estate and FM: Programme,Government Property Agency London,00000001/20321,"7,690.43",Y
Crown Prosecution Service ,30/08/22,Lease liability non current lease payments,Balance Sheet,Government Property Agency London,00000001/20322,"51,967.50",
Crown Prosecution Service ,30/08/22,Landlord service charge,Estate and FM: Programme,Government Property Agency London,00000001/20322,"14,927.44",
Crown Prosecution Service ,30/08/22,Property management fees,Estate and FM: Programme,Government Property Agency London,00000001/20322,"6,689.63",Y
Crown Prosecution Service ,30/08/22,National non domestic rates,Estate and FM: Programme,Government Property Agency London,00000001/20322,"15,263.75",
Crown Prosecution Service ,30/08/22,Landlord service charge,Estate and FM: Programme,Government Property Agency London,00000001/20323,"10,287.39",
Crown Prosecution Service ,30/08/22,National non domestic rates,Estate and FM: Programme,Government Property Agency London,00000001/20323,"3,149.94",
Crown Prosecution Service ,30/08/22,Property management fees,Estate and FM: Programme,Government Property Agency London,00000001/20323,"4,356.53",
Crown Prosecution Service ,30/08/22,Lease liability non current lease payments,Balance Sheet,Government Property Agency London,00000001/20323,"8,750.00",
Crown Prosecution Service ,30/08/22,Lease liability non current lease payments,Balance Sheet,Government Property Agency London,00000001/20324,"244,327.50",
Crown Prosecution Service ,30/08/22,Landlord service charge,Estate and FM: Programme,Government Property Agency London,00000001/20324,"102,906.72",
Crown Prosecution Service ,30/08/22,Property management fees,Estate and FM: Programme,Government Property Agency London,00000001/20324,"14,832.82",Y
Crown Prosecution Service ,30/08/22,National non domestic rates,Estate and FM: Programme,Government Property Agency London,00000001/20324,"62,618.88",
Crown Prosecution Service ,30/08/22,Landlord service charge,Estate and FM: Programme,Government Property Agency London,00000001/20326,"10,508.37",
Crown Prosecution Service ,30/08/22,Lease liability non current lease payments,Balance Sheet,Government Property Agency London,00000001/20326,"12,000.00",
Crown Prosecution Service ,30/08/22,Property management fees,Estate and FM: Programme,Government Property Agency London,00000001/20326,"6,106.30",Y
Crown Prosecution Service ,30/08/22,National non domestic rates,Estate and FM: Programme,Government Property Agency London,00000001/20326,"5,383.50",
Crown Prosecution Service ,30/08/22,National non domestic rates,Estate and FM: Programme,Government Property Agency London,00000001/20327,"34,880.00",
Crown Prosecution Service ,30/08/22,Landlord service charge,Estate and FM: Programme,Government Property Agency London,00000001/20327,"30,171.96",
Crown Prosecution Service ,30/08/22,Lease liability non current lease payments,Balance Sheet,Government Property Agency London,00000001/20327,"80,407.80",
Crown Prosecution Service ,30/08/22,Property management fees,Estate and FM: Programme,Government Property Agency London,00000001/20327,"9,831.29",Y
Crown Prosecution Service ,30/08/22,National non domestic rates,Estate and FM: Programme,Government Property Agency London,00000001/20330,"15,744.00",
Crown Prosecution Service ,30/08/22,Short term leases from 2 to 12 months: Property,Estate and FM: Programme,Government Property Agency London,00000001/20330,"48,123.00",
Crown Prosecution Service ,30/08/22,Property management fees,Estate and FM: Programme,Government Property Agency London,00000001/20330,"7,964.86",Y
Crown Prosecution Service ,30/08/22,Landlord service charge,Estate and FM: Programme,Government Property Agency London,00000001/20330,"22,305.61",
Crown Prosecution Service ,30/08/22,Lease liability non current lease payments,Balance Sheet,Government Property Agency London,00000001/20332,"47,000.00",
Crown Prosecution Service ,30/08/22,National non domestic rates,Estate and FM: Programme,Government Property Agency London,00000001/20332,"17,408.00",
Crown Prosecution Service ,30/08/22,Property management fees,Estate and FM: Programme,Government Property Agency London,00000001/20332,"7,472.28",
Crown Prosecution Service ,30/08/22,Landlord service charge,Estate and FM: Programme,Government Property Agency London,00000001/20332,"17,516.34",
Crown Prosecution Service ,30/08/22,National non domestic rates,Estate and FM: Programme,Government Property Agency London,00000001/20333,"9,280.00",
Crown Prosecution Service ,30/08/22,Property management fees,Estate and FM: Programme,Government Property Agency London,00000001/20333,"6,658.06",Y
Crown Prosecution Service ,30/08/22,Landlord service charge,Estate and FM: Programme,Government Property Agency London,00000001/20333,"17,912.63",
Crown Prosecution Service ,30/08/22,Lease liability non current lease payments,Balance Sheet,Government Property Agency London,00000001/20333,"26,640.00",
Crown Prosecution Service ,30/08/22,Lease liability non current lease payments,Balance Sheet,Government Property Agency London,00000001/20335,"6,002.47",
Crown Prosecution Service ,30/08/22,Landlord service charge,Estate and FM: Programme,Government Property Agency London,00000001/20335,"18,659.77",
Crown Prosecution Service ,30/08/22,Property management fees,Estate and FM: Programme,Government Property Agency London,00000001/20335,"5,335.20",
Crown Prosecution Service ,30/08/22,National non domestic rates,Estate and FM: Programme,Government Property Agency London,00000001/20335,"4,156.00",
Crown Prosecution Service ,30/08/22,National non domestic rates,Estate and FM: Programme,Government Property Agency London,00000001/20337,189.35,
Crown Prosecution Service ,30/08/22,National non domestic rates,Estate and FM: Programme,Government Property Agency London,00000001/20337,"38,400.00",
Crown Prosecution Service ,30/08/22,Accommodation rental costs (non-IFRS16),Estate and FM: Programme,Government Property Agency London,00000001/20337,450.00,
Crown Prosecution Service ,30/08/22,Lease liability non current lease payments,Balance Sheet,Government Property Agency London,00000001/20337,"106,451.25",
Crown Prosecution Service ,30/08/22,Property management fees,Estate and FM: Programme,Government Property Agency London,00000001/20337,"11,279.12",
Crown Prosecution Service ,30/08/22,Property management fees,Estate and FM: Programme,Government Property Agency London,00000001/20337,104.15,Y
Crown Prosecution Service ,30/08/22,Landlord service charge,Estate and FM: Programme,Government Property Agency London,00000001/20337,"50,122.06",
Crown Prosecution Service ,30/08/22,Landlord service charge,Estate and FM: Programme,Government Property Agency London,00000001/20339,"3,695.36",
Crown Prosecution Service ,30/08/22,Property management fees,Estate and FM: Programme,Government Property Agency London,00000001/20339,"5,028.08",
Crown Prosecution Service ,30/08/22,National non domestic rates,Estate and FM: Programme,Government Property Agency London,00000001/20339,"5,177.13",
Crown Prosecution Service ,30/08/22,Lease liability non current lease payments,Balance Sheet,Government Property Agency London,00000001/20339,"11,687.50",
Crown Prosecution Service ,30/08/22,Property management fees,Estate and FM: Programme,Government Property Agency London,00000001/20340,"10,059.36",Y
Crown Prosecution Service ,30/08/22,Short term leases from 2 to 12 months: Property,Estate and FM: Programme,Government Property Agency London,00000001/20340,"57,402.60",
Crown Prosecution Service ,30/08/22,National non domestic rates,Estate and FM: Programme,Government Property Agency London,00000001/20340,"24,154.04",
Crown Prosecution Service ,30/08/22,Landlord service charge,Estate and FM: Programme,Government Property Agency London,00000001/20340,"35,626.51",
Crown Prosecution Service ,30/08/22,Landlord service charge,Estate and FM: Programme,Government Property Agency London,00000001/20346,"17,916.99",
Crown Prosecution Service ,30/08/22,Landlord service charge,Estate and FM: Administration,Government Property Agency London,00000001/20346,"17,917.00",
Crown Prosecution Service ,30/08/22,Property management fees,Estate and FM: Administration,Government Property Agency London,00000001/20346,"2,866.87",
Crown Prosecution Service ,30/08/22,Property management fees,Estate and FM: Programme,Government Property Agency London,00000001/20346,"2,866.87",
Crown Prosecution Service ,30/08/22,National non domestic rates,Estate and FM: Programme,Government Property Agency London,00000001/20346,"8,316.16",
Crown Prosecution Service ,30/08/22,Lease liability non current lease payments,Balance Sheet,Government Property Agency London,00000001/20346,"72,484.95",
Crown Prosecution Service ,30/08/22,National non domestic rates,Estate and FM: Administration,Government Property Agency London,00000001/20346,"8,316.16",
Crown Prosecution Service ,30/08/22,Lease liability non current lease payments,Balance Sheet,Government Property Agency London,00000001/20350,"1,201,346.27",
Crown Prosecution Service ,30/08/22,Property management fees,Estate and FM: Administration,Government Property Agency London,00000001/20350,"5,278.86",
Crown Prosecution Service ,30/08/22,Landlord service charge,Estate and FM: Programme,Government Property Agency London,00000001/20350,"1,413,981.78",
Crown Prosecution Service ,30/08/22,Landlord service charge,Estate and FM: Administration,Government Property Agency London,00000001/20350,"289,610.72",
Crown Prosecution Service ,30/08/22,National non domestic rates,Estate and FM: Administration,Government Property Agency London,00000001/20350,"84,330.15",
Crown Prosecution Service ,30/08/22,Property management fees,Estate and FM: Programme,Government Property Agency London,00000001/20350,"25,773.29",
Crown Prosecution Service ,30/08/22,National non domestic rates,Estate and FM: Programme,Government Property Agency London,00000001/20350,"411,729.60",
Crown Prosecution Service ,30/08/22,Property management fees,Estate and FM: Programme,Government Property Agency London,00000001/20352,"7,365.19",
Crown Prosecution Service ,30/08/22,Landlord service charge,Estate and FM: Programme,Government Property Agency London,00000001/20352,"5,957.64",
Crown Prosecution Service ,30/08/22,National non domestic rates,Estate and FM: Programme,Government Property Agency London,00000001/20352,"24,576.00",
Crown Prosecution Service ,30/08/22,Lease liability non current lease payments,Balance Sheet,Government Property Agency London,00000001/20352,"66,875.00",
Crown Prosecution Service ,30/08/22,Lease liability non current lease payments,Balance Sheet,Government Property Agency London,00000001/20361,"23,429.25",
Crown Prosecution Service ,30/08/22,Landlord service charge,Estate and FM: Programme,Government Property Agency London,00000001/20361,"11,393.44",
Crown Prosecution Service ,30/08/22,Property management fees,Estate and FM: Programme,Government Property Agency London,00000001/20361,"8,378.11",
Crown Prosecution Service ,30/08/22,National non domestic rates,Estate and FM: Programme,Government Property Agency London,00000001/20361,"17,645.96",
Crown Prosecution Service ,30/08/22,National non domestic rates,Estate and FM: Programme,Government Property Agency London,00000001/20364,"29,440.00",
Crown Prosecution Service ,30/08/22,Property management fees,Estate and FM: Programme,Government Property Agency London,00000001/20364,"7,917.66",Y
Crown Prosecution Service ,30/08/22,Lease liability non current lease payments,Balance Sheet,Government Property Agency London,00000001/20364,"89,856.60",
Crown Prosecution Service ,30/08/22,Landlord service charge,Estate and FM: Programme,Government Property Agency London,00000001/20364,"71,853.66",
Crown Prosecution Service ,30/08/22,Property management fees,Estate and FM: Programme,Government Property Agency London,00000001/20365,"4,919.18",
Crown Prosecution Service ,30/08/22,Lease liability non current lease payments,Balance Sheet,Government Property Agency London,00000001/20365,"26,746.38",
Crown Prosecution Service ,30/08/22,Property management fees,Estate and FM: Programme,Government Property Agency London,00000001/20366,506.25,
Crown Prosecution Service ,30/08/22,Landlord service charge,Estate and FM: Programme,Government Property Agency London,00000001/20366,"35,405.13",
Crown Prosecution Service ,30/08/22,Lease liability non current lease payments,Balance Sheet,Government Property Agency London,00000001/20366,"18,852.04",
Crown Prosecution Service ,30/08/22,Property management fees,Estate and FM: Administration,Government Property Agency London,00000001/20560,"6,334.63",Y
Crown Prosecution Service ,30/08/22,Property management fees,Estate and FM: Programme,Government Property Agency London,00000001/20560,"30,927.95",Y
Crown Prosecution Service ,30/08/22,National non domestic rates,Estate and FM: Programme,Government Property Agency London,00000001/20588,"8,017.93",
Crown Prosecution Service ,30/08/22,Lease liability non current lease payments,Balance Sheet,Government Property Agency London,00000001/20588,"32,778.00",
Crown Prosecution Service ,30/08/22,Property management fees,Estate and FM: Programme,Government Property Agency London,00000001/20588,"6,843.18",Y
Crown Prosecution Service ,30/08/22,Landlord service charge,Estate and FM: Programme,Government Property Agency London,00000001/20588,"15,970.00",
Crown Prosecution Service ,30/08/22,IT services,Service Desk Contract,CGI IT UK Ltd,GB014088032,"97,543.70",
Crown Prosecution Service ,30/08/22,Recoverable VAT control,Balance Sheet,CGI IT UK Ltd,GB014088032,"19,508.74",Y
Crown Prosecution Service ,30/08/22,Recoverable VAT control,Balance Sheet,AVR Transcription Ltd Bolton,JUL22-CPS-35891,"10,129.21",Y
Crown Prosecution Service ,30/08/22,Transcriptions and Translation,Other Corporate Programme Payments,AVR Transcription Ltd Bolton,JUL22-CPS-35891,"50,646.05",
